[Event "Titled Tuesday Blitz April 05 Late 2022"]
[White "Bas Mas, Jose Joaquin"]
[Black "Roberson, Peter T"]
[WhiteFideId "22219064"]
[BlackFideId "412384"]
[WhiteElo "2212"]
[BlackElo "2346"]
[Result "0-1"]
[Round "03"]
[TimeControl "180+1"]
[Date "2022.04.06"]
[WhiteClock "0:00:10"]
[BlackClock "0:00:19"]

1. e4 {[%clk 0:03:00]}  e5 {[%clk 0:02:59]} 2. Nc3 {[%clk 0:03:00]}  Nf6 {[%clk 0:02:59]} 3. g3 {[%clk 0:03:01]}  d5 {[%clk 0:02:58]} 4. exd5 {[%clk 0:03:02]}  Nxd5 {[%clk 0:02:59]} 5. Bg2 {[%clk 0:03:02]}  Nxc3 {[%clk 0:02:59]} 6. bxc3 {[%clk 0:03:03]}  Nc6 {[%clk 0:02:59]} 7. Nf3 {[%clk 0:03:03]}  Qf6 {[%clk 0:02:59]} 8. O-O {[%clk 0:02:58]}  Bd6 {[%clk 0:02:59]} 9. d3 {[%clk 0:02:56]}  h6 {[%clk 0:02:59]} 10. Rb1 {[%clk 0:02:51]}  O-O {[%clk 0:02:59]} 11. h3 {[%clk 0:02:48]}  b6 {[%clk 0:02:56]} 12. Nd2 {[%clk 0:02:42]}  Bd7 {[%clk 0:02:54]} 13. Ne4 {[%clk 0:02:40]}  Qg6 {[%clk 0:02:55]} 14. Nxd6 {[%clk 0:02:37]}  Qxd6 {[%clk 0:02:55]} 15. Qf3 {[%clk 0:02:32]}  Rae8 {[%clk 0:02:54]} 16. Re1 {[%clk 0:02:26]}  f5 {[%clk 0:02:54]} 17. Qd5+ {[%clk 0:02:26]}  Kh7 {[%clk 0:02:50]} 18. Qxd6 {[%clk 0:02:26]}  cxd6 {[%clk 0:02:51]} 19. Ba3 {[%clk 0:02:23]}  Rf6 {[%clk 0:02:50]} 20. f4 {[%clk 0:02:07]}  Rc8 {[%clk 0:02:48]} 21. Bxc6 {[%clk 0:01:47]}  Rxc6 {[%clk 0:02:42]} 22. c4 {[%clk 0:01:43]}  exf4 {[%clk 0:02:30]} 23. gxf4 {[%clk 0:01:44]}  d5 {[%clk 0:02:30]} 24. Re7 {[%clk 0:01:33]}  Be6 {[%clk 0:02:31]} 25. cxd5 {[%clk 0:01:26]}  Rg6+ {[%clk 0:02:26]} 26. Kf2 {[%clk 0:01:18]}  Rxc2+ {[%clk 0:02:25]} 27. Ke3 {[%clk 0:01:18]}  Bxd5 {[%clk 0:02:22]} 28. Kd4 {[%clk 0:01:16]}  Bxa2 {[%clk 0:02:18]} 29. Rbe1 {[%clk 0:01:11]}  Rh2 {[%clk 0:02:00]} 30. Rxa7 {[%clk 0:01:09]}  Rxh3 {[%clk 0:01:59]} 31. Bf8 {[%clk 0:01:04]}  Rgg3 {[%clk 0:01:49]} 32. Rxa2 {[%clk 0:01:02]}  Rxd3+ {[%clk 0:01:47]} 33. Ke5 {[%clk 0:01:02]}  g5 {[%clk 0:01:21]} 34. Bd6 {[%clk 0:00:28]}  gxf4 {[%clk 0:01:14]} 35. Ra7+ {[%clk 0:00:28]}  Kg6 {[%clk 0:01:14]} 36. Rb7 {[%clk 0:00:20]}  Rhe3+ {[%clk 0:01:12]} 37. Rxe3 {[%clk 0:00:20]}  fxe3 {[%clk 0:01:13]} 38. Bb4 {[%clk 0:00:19]}  e2 {[%clk 0:01:09]} 39. Rxb6+ {[%clk 0:00:19]}  Kg5 {[%clk 0:01:10]} 40. Re6 {[%clk 0:00:17]}  f4 {[%clk 0:00:39]} 41. Be7+ {[%clk 0:00:14]}  Kg4 {[%clk 0:00:37]} 42. Bb4 {[%clk 0:00:09]}  Re3+ {[%clk 0:00:33]} 43. Kd5 {[%clk 0:00:09]}  Rxe6 {[%clk 0:00:31]} 44. Kxe6 {[%clk 0:00:10]}  h5 {[%clk 0:00:22]} 45. Be1 {[%clk 0:00:10]}  h4 {[%clk 0:00:22]} 46. Ke5 {[%clk 0:00:10]}  h3 {[%clk 0:00:21]} 47. Ke4 {[%clk 0:00:10]}  h2 {[%clk 0:00:19]} 0-1


[Site "https://www.chess.com"]

[Event "Titled Tuesday Blitz April 05 Late 2022"]
[White "Bashirli, Nail"]
[Black "Suarez Uriel, Adrian"]
[WhiteFideId "13406809"]
[BlackFideId "22230874"]
[WhiteElo "2333"]
[BlackElo "2316"]
[Result "1/2-1/2"]
[Round "03"]
[TimeControl "180+1"]
[Date "2022.04.06"]
[WhiteClock "0:00:20"]
[BlackClock "0:00:39"]

1. e4 {[%clk 0:03:00]}  c5 {[%clk 0:02:58]} 2. Nf3 {[%clk 0:03:00]}  Nc6 {[%clk 0:02:59]} 3. d4 {[%clk 0:02:59]}  cxd4 {[%clk 0:02:59]} 4. Nxd4 {[%clk 0:03:00]}  g6 {[%clk 0:03:00]} 5. Bc4 {[%clk 0:02:54]}  Bg7 {[%clk 0:02:52]} 6. c3 {[%clk 0:02:54]}  Nf6 {[%clk 0:02:48]} 7. Nxc6 {[%clk 0:02:52]}  bxc6 {[%clk 0:02:36]} 8. e5 {[%clk 0:02:50]}  Nd5 {[%clk 0:02:33]} 9. O-O {[%clk 0:02:44]}  O-O {[%clk 0:02:31]} 10. Re1 {[%clk 0:02:34]}  Rb8 {[%clk 0:02:23]} 11. Nd2 {[%clk 0:02:34]}  Nb6 {[%clk 0:02:16]} 12. Bb3 {[%clk 0:02:31]}  d5 {[%clk 0:02:16]} 13. exd6 {[%clk 0:02:28]}  exd6 {[%clk 0:02:17]} 14. Ne4 {[%clk 0:02:28]}  d5 {[%clk 0:02:11]} 15. Bf4 {[%clk 0:02:28]}  Rb7 {[%clk 0:02:00]} 16. Nc5 {[%clk 0:02:15]}  Re7 {[%clk 0:01:58]} 17. Qd2 {[%clk 0:02:01]}  Bf5 {[%clk 0:01:52]} 18. a4 {[%clk 0:01:57]}  Rfe8 {[%clk 0:01:39]} 19. h3 {[%clk 0:01:55]}  h5 {[%clk 0:01:23]} 20. Bg5 {[%clk 0:01:53]}  Rxe1+ {[%clk 0:01:23]} 21. Rxe1 {[%clk 0:01:50]}  Rxe1+ {[%clk 0:01:23]} 22. Qxe1 {[%clk 0:01:51]}  Qxg5 {[%clk 0:01:21]} 23. a5 {[%clk 0:01:51]}  Nd7 {[%clk 0:01:18]} 24. Qe8+ {[%clk 0:01:47]}  Nf8 {[%clk 0:01:19]} 25. Qxc6 {[%clk 0:01:37]}  Bxh3 {[%clk 0:01:17]} 26. Bxd5 {[%clk 0:01:34]}  h4 {[%clk 0:01:11]} 27. Qb7 {[%clk 0:00:46]}  Bxg2 {[%clk 0:00:52]} 28. Qxf7+ {[%clk 0:00:45]}  Kh7 {[%clk 0:00:52]} 29. Bxg2 {[%clk 0:00:34]}  h3 {[%clk 0:00:52]} 30. Qf3 {[%clk 0:00:33]}  hxg2 {[%clk 0:00:52]} 31. Ne4 {[%clk 0:00:30]}  Qc1+ {[%clk 0:00:51]} 32. Kxg2 {[%clk 0:00:31]}  Qxb2 {[%clk 0:00:49]} 33. Ng5+ {[%clk 0:00:30]}  Kg8 {[%clk 0:00:39]} 34. Qd5+ {[%clk 0:00:29]}  Kh8 {[%clk 0:00:39]} 35. Nf7+ {[%clk 0:00:24]}  Kh7 {[%clk 0:00:39]} 36. Ng5+ {[%clk 0:00:23]}  Kh6 {[%clk 0:00:38]} 37. Nf7+ {[%clk 0:00:21]}  Kh7 {[%clk 0:00:38]} 38. Ng5+ {[%clk 0:00:21]}  Kh8 {[%clk 0:00:38]} 39. Nf7+ {[%clk 0:00:20]}  Kh7 {[%clk 0:00:39]} 1/2-1/2


[Site "https://www.chess.com"]

[Event "Titled Tuesday Blitz April 05 Late 2022"]
[White "Bernat, David"]
[Black "Suder, Jakub"]
[WhiteFideId "2099225"]
[BlackFideId "1195310"]
[WhiteElo "2307"]
[BlackElo "2058"]
[Result "0-1"]
[Round "03"]
[TimeControl "180+1"]
[Date "2022.04.06"]
[WhiteClock "0:00:44"]
[BlackClock "0:02:29"]

1. c4 {[%clk 0:03:00]}  e6 {[%clk 0:03:00]} 2. e4 {[%clk 0:03:00]}  c5 {[%clk 0:02:58]} 3. Nc3 {[%clk 0:03:00]}  Nc6 {[%clk 0:02:59]} 4. g3 {[%clk 0:03:00]}  Nf6 {[%clk 0:02:59]} 5. Bg2 {[%clk 0:03:00]}  Be7 {[%clk 0:02:58]} 6. Nge2 {[%clk 0:03:01]}  b6 {[%clk 0:02:58]} 7. O-O {[%clk 0:02:55]}  Bb7 {[%clk 0:02:58]} 8. e5 {[%clk 0:02:56]}  Ng4 {[%clk 0:02:57]} 9. f4 {[%clk 0:02:54]}  h5 {[%clk 0:02:57]} 10. h3 {[%clk 0:02:53]}  Nh6 {[%clk 0:02:57]} 11. Ne4 {[%clk 0:02:47]}  Nf5 {[%clk 0:02:56]} 12. Kh2 {[%clk 0:02:42]}  Qc7 {[%clk 0:02:54]} 13. N2c3 {[%clk 0:02:39]}  a6 {[%clk 0:02:54]} 14. Nd5 {[%clk 0:02:26]}  exd5 {[%clk 0:02:52]} 15. cxd5 {[%clk 0:02:27]}  Ncd4 {[%clk 0:02:52]} 16. d6 {[%clk 0:02:27]}  Bxd6 {[%clk 0:02:47]} 17. Nxd6+ {[%clk 0:02:14]}  Nxd6 {[%clk 0:02:46]} 18. exd6 {[%clk 0:02:14]}  Qc8 {[%clk 0:02:44]} 19. Qe1+ {[%clk 0:01:56]}  Kf8 {[%clk 0:02:41]} 20. Qe7+ {[%clk 0:01:55]}  Kg8 {[%clk 0:02:42]} 21. b3 {[%clk 0:01:04]}  Bxg2 {[%clk 0:02:42]} 22. Kxg2 {[%clk 0:01:05]}  Qc6+ {[%clk 0:02:40]} 23. Kg1 {[%clk 0:01:01]}  Rh6 {[%clk 0:02:38]} 24. Bb2 {[%clk 0:00:57]}  Re6 {[%clk 0:02:37]} 25. Qg5 {[%clk 0:00:53]}  Rae8 {[%clk 0:02:30]} 26. f5 {[%clk 0:00:50]}  Re2 {[%clk 0:02:29]} 27. Rf2 {[%clk 0:00:45]}  Rxf2 {[%clk 0:02:29]} 28. Kxf2 {[%clk 0:00:44]}  Re2+ {[%clk 0:02:29]} 0-1


[Site "https://www.chess.com"]

[Event "Titled Tuesday Blitz April 05 Late 2022"]
[White "Chen, Justin"]
[Black "Dardha, Daniel"]
[WhiteFideId "2098199"]
[BlackFideId "240990"]
[WhiteElo "2502"]
[BlackElo "2482"]
[Result "0-1"]
[Round "03"]
[TimeControl "180+1"]
[Date "2022.04.06"]
[WhiteClock "0:00:01"]
[BlackClock "0:00:37"]

1. Nf3 {[%clk 0:03:00]}  Nc6 {[%clk 0:02:58]} 2. d4 {[%clk 0:02:58]}  d5 {[%clk 0:02:57]} 3. Bf4 {[%clk 0:02:58]}  Bg4 {[%clk 0:02:55]} 4. Nbd2 {[%clk 0:02:57]}  e6 {[%clk 0:02:54]} 5. e3 {[%clk 0:02:57]}  Bd6 {[%clk 0:02:53]} 6. Bg3 {[%clk 0:02:57]}  Nge7 {[%clk 0:02:52]} 7. Be2 {[%clk 0:02:57]}  O-O {[%clk 0:02:51]} 8. c4 {[%clk 0:02:52]}  dxc4 {[%clk 0:02:45]} 9. Nxc4 {[%clk 0:02:52]}  Bb4+ {[%clk 0:02:43]} 10. Ncd2 {[%clk 0:02:47]}  Nf5 {[%clk 0:02:38]} 11. a3 {[%clk 0:02:43]}  Bxd2+ {[%clk 0:02:37]} 12. Qxd2 {[%clk 0:02:35]}  Qe7 {[%clk 0:02:29]} 13. Rc1 {[%clk 0:02:34]}  Rad8 {[%clk 0:02:27]} 14. Qc2 {[%clk 0:02:15]}  Nxg3 {[%clk 0:02:16]} 15. hxg3 {[%clk 0:02:15]}  Bf5 {[%clk 0:02:13]} 16. Qc5 {[%clk 0:02:01]}  Qf6 {[%clk 0:02:09]} 17. Bb5 {[%clk 0:01:37]}  Rd5 {[%clk 0:01:59]} 18. Qc4 {[%clk 0:01:34]}  Ne7 {[%clk 0:01:48]} 19. Qe2 {[%clk 0:01:27]}  c6 {[%clk 0:01:33]} 20. Bc4 {[%clk 0:01:13]}  Rdd8 {[%clk 0:01:30]} 21. Ne5 {[%clk 0:01:13]}  c5 {[%clk 0:01:22]} 22. e4 {[%clk 0:00:58]}  Bg6 {[%clk 0:01:13]} 23. Nxg6 {[%clk 0:00:50]}  Qxg6 {[%clk 0:01:14]} 24. dxc5 {[%clk 0:00:46]}  Nc6 {[%clk 0:01:12]} 25. O-O {[%clk 0:00:37]}  Ne5 {[%clk 0:01:09]} 26. Rfd1 {[%clk 0:00:33]}  Ng4 {[%clk 0:01:05]} 27. Rxd8 {[%clk 0:00:15]}  Rxd8 {[%clk 0:01:06]} 28. Rd1 {[%clk 0:00:15]}  Rc8 {[%clk 0:00:56]} 29. f3 {[%clk 0:00:09]}  Ne5 {[%clk 0:00:54]} 30. g4 {[%clk 0:00:05]}  h6 {[%clk 0:00:51]} 31. b4 {[%clk 0:00:04]}  Qg5 {[%clk 0:00:43]} 32. Bb3 {[%clk 0:00:04]}  Rd8 {[%clk 0:00:42]} 33. Rxd8+ {[%clk 0:00:03]}  Qxd8 {[%clk 0:00:43]} 34. Qd1 {[%clk 0:00:04]}  Qh4 {[%clk 0:00:43]} 35. Qd4 {[%clk 0:00:02]}  Qg3 {[%clk 0:00:41]} 36. Qd8+ {[%clk 0:00:01]}  Kh7 {[%clk 0:00:41]} 37. Kf1 {[%clk 0:00:02]}  Nxf3 {[%clk 0:00:39]} 38. Qd3 {[%clk 0:00:01]}  Qe1# {[%clk 0:00:37]} 0-1


[Site "https://www.chess.com"]

[Event "Titled Tuesday Blitz April 05 Late 2022"]
[White "Delaney, Killian"]
[Black "Kollars, Dmitrij"]
[WhiteFideId "2501570"]
[BlackFideId "12909572"]
[WhiteElo "2306"]
[BlackElo "2584"]
[Result "0-1"]
[Round "03"]
[TimeControl "180+1"]
[Date "2022.04.05"]
[WhiteClock "0:01:26"]
[BlackClock "0:01:36"]

1. e4 {[%clk 0:03:00]}  e6 {[%clk 0:02:55]} 2. d4 {[%clk 0:03:00]}  d5 {[%clk 0:02:56]} 3. e5 {[%clk 0:03:00]}  c5 {[%clk 0:02:55]} 4. c3 {[%clk 0:03:00]}  Qb6 {[%clk 0:02:52]} 5. Nf3 {[%clk 0:03:00]}  Bd7 {[%clk 0:02:51]} 6. Bd3 {[%clk 0:03:00]}  Bb5 {[%clk 0:02:50]} 7. dxc5 {[%clk 0:03:00]}  Bxc5 {[%clk 0:02:49]} 8. b4 {[%clk 0:03:00]}  Be7 {[%clk 0:02:41]} 9. Be3 {[%clk 0:02:58]}  Qa6 {[%clk 0:02:41]} 10. Bc2 {[%clk 0:02:57]}  Nh6 {[%clk 0:02:27]} 11. a4 {[%clk 0:02:56]}  Bc4 {[%clk 0:02:26]} 12. Na3 {[%clk 0:02:46]}  Qc6 {[%clk 0:02:25]} 13. Nd4 {[%clk 0:02:43]}  Qc8 {[%clk 0:02:24]} 14. Nxc4 {[%clk 0:02:33]}  Qxc4 {[%clk 0:02:25]} 15. Nb5 {[%clk 0:02:31]}  a6 {[%clk 0:02:15]} 16. Bd3 {[%clk 0:02:21]}  Qc8 {[%clk 0:02:09]} 17. Nd6+ {[%clk 0:02:11]}  Bxd6 {[%clk 0:02:08]} 18. exd6 {[%clk 0:02:12]}  Qxc3+ {[%clk 0:02:05]} 19. Ke2 {[%clk 0:02:12]}  Qb2+ {[%clk 0:01:58]} 20. Qd2 {[%clk 0:02:05]}  Qxd2+ {[%clk 0:01:57]} 21. Bxd2 {[%clk 0:02:06]}  Nc6 {[%clk 0:01:55]} 22. b5 {[%clk 0:01:56]}  Nd4+ {[%clk 0:01:55]} 23. Ke3 {[%clk 0:01:54]}  Nhf5+ {[%clk 0:01:53]} 24. Bxf5 {[%clk 0:01:40]}  Nxf5+ {[%clk 0:01:54]} 25. Kd3 {[%clk 0:01:40]}  Nxd6 {[%clk 0:01:45]} 26. Bb4 {[%clk 0:01:31]}  Nc4 {[%clk 0:01:44]} 27. f4 {[%clk 0:01:26]}  Kd7 {[%clk 0:01:36]} 0-1


[Site "https://www.chess.com"]

[Event "Titled Tuesday Blitz April 05 Late 2022"]
[White "Djordjevic, Dejan N"]
[Black "Gogolev, Artem"]
[WhiteFideId "913316"]
[BlackFideId "4116615"]
[WhiteElo "2262"]
[BlackElo "2126"]
[Result "0-1"]
[Round "03"]
[TimeControl "180+1"]
[Date "2022.04.06"]
[WhiteClock "0:01:04"]
[BlackClock "0:00:27"]

1. e4 {[%clk 0:03:00]}  c5 {[%clk 0:02:58]} 2. Nc3 {[%clk 0:03:00]}  d6 {[%clk 0:02:57]} 3. g3 {[%clk 0:03:00]}  g6 {[%clk 0:02:56]} 4. Bg2 {[%clk 0:03:00]}  Bg7 {[%clk 0:02:57]} 5. Nge2 {[%clk 0:03:01]}  Nc6 {[%clk 0:02:57]} 6. O-O {[%clk 0:03:01]}  e6 {[%clk 0:02:57]} 7. h3 {[%clk 0:03:01]}  Nge7 {[%clk 0:02:57]} 8. d3 {[%clk 0:03:02]}  O-O {[%clk 0:02:57]} 9. Bg5 {[%clk 0:03:02]}  Qc7 {[%clk 0:02:51]} 10. Qd2 {[%clk 0:03:02]}  Re8 {[%clk 0:02:50]} 11. Rae1 {[%clk 0:02:56]}  Rb8 {[%clk 0:02:50]} 12. Be3 {[%clk 0:02:53]}  Nd4 {[%clk 0:02:46]} 13. Nd1 {[%clk 0:02:53]}  b5 {[%clk 0:02:42]} 14. c3 {[%clk 0:02:52]}  Nxe2+ {[%clk 0:02:38]} 15. Qxe2 {[%clk 0:02:52]}  b4 {[%clk 0:02:36]} 16. d4 {[%clk 0:02:47]}  Qa5 {[%clk 0:02:28]} 17. dxc5 {[%clk 0:02:41]}  Ba6 {[%clk 0:02:15]} 18. c4 {[%clk 0:02:38]}  dxc5 {[%clk 0:02:14]} 19. b3 {[%clk 0:02:38]}  Nc6 {[%clk 0:02:13]} 20. f4 {[%clk 0:02:34]}  Nd4 {[%clk 0:02:12]} 21. Qf2 {[%clk 0:02:34]}  Rbd8 {[%clk 0:02:07]} 22. g4 {[%clk 0:02:26]}  f5 {[%clk 0:01:52]} 23. gxf5 {[%clk 0:02:13]}  gxf5 {[%clk 0:01:39]} 24. e5 {[%clk 0:02:13]}  Kh8 {[%clk 0:01:36]} 25. Kh2 {[%clk 0:02:11]}  Qc7 {[%clk 0:01:32]} 26. Rg1 {[%clk 0:02:06]}  Rg8 {[%clk 0:01:33]} 27. Nb2 {[%clk 0:01:58]}  Bb7 {[%clk 0:01:30]} 28. Ref1 {[%clk 0:01:51]}  Be4 {[%clk 0:01:26]} 29. Bh1 {[%clk 0:01:40]}  Bh6 {[%clk 0:01:19]} 30. Rxg8+ {[%clk 0:01:36]}  Rxg8 {[%clk 0:01:18]} 31. Bxd4 {[%clk 0:01:36]}  cxd4 {[%clk 0:01:17]} 32. Qxd4 {[%clk 0:01:35]}  Bxh1 {[%clk 0:01:13]} 33. Rxh1 {[%clk 0:01:34]}  Qg7 {[%clk 0:01:13]} 34. Rg1 {[%clk 0:01:22]}  Bxf4+ {[%clk 0:01:08]} 35. Kh1 {[%clk 0:01:21]}  Qxe5 {[%clk 0:00:34]} 36. Rxg8+ {[%clk 0:01:20]}  Kxg8 {[%clk 0:00:33]} 37. Qxe5 {[%clk 0:01:08]}  Bxe5 {[%clk 0:00:34]} 38. Nd3 {[%clk 0:01:08]}  Bc3 {[%clk 0:00:34]} 39. c5 {[%clk 0:01:08]}  Kf7 {[%clk 0:00:34]} 40. Kg2 {[%clk 0:01:07]}  e5 {[%clk 0:00:32]} 41. c6 {[%clk 0:01:04]}  Ke7 {[%clk 0:00:27]} 0-1


[Site "https://www.chess.com"]

[Event "Titled Tuesday Blitz April 05 Late 2022"]
[White "Do Valle Cardoso, Lucas"]
[Black "Shimanov, Aleksandr"]
[WhiteFideId "2163144"]
[BlackFideId "4198603"]
[WhiteElo "2331"]
[BlackElo "2636"]
[Result "1-0"]
[Round "03"]
[TimeControl "180+1"]
[Date "2022.04.05"]
[WhiteClock "0:00:10"]
[BlackClock "0:00:03"]

1. e4 {[%clk 0:03:00]}  c6 {[%clk 0:02:55]} 2. d4 {[%clk 0:02:58]}  d5 {[%clk 0:02:55]} 3. Nc3 {[%clk 0:02:58]}  dxe4 {[%clk 0:02:53]} 4. Nxe4 {[%clk 0:02:59]}  Bf5 {[%clk 0:02:53]} 5. Ng3 {[%clk 0:03:00]}  Bg6 {[%clk 0:02:53]} 6. h4 {[%clk 0:03:01]}  h6 {[%clk 0:02:52]} 7. h5 {[%clk 0:03:01]}  Bh7 {[%clk 0:02:53]} 8. Nf3 {[%clk 0:03:02]}  e6 {[%clk 0:02:44]} 9. Bd3 {[%clk 0:03:03]}  Bxd3 {[%clk 0:02:42]} 10. Qxd3 {[%clk 0:03:04]}  Nf6 {[%clk 0:02:41]} 11. Bd2 {[%clk 0:03:04]}  a5 {[%clk 0:02:40]} 12. O-O-O {[%clk 0:02:58]}  Bb4 {[%clk 0:02:37]} 13. c3 {[%clk 0:02:58]}  Be7 {[%clk 0:02:37]} 14. Ne4 {[%clk 0:02:56]}  a4 {[%clk 0:02:19]} 15. Kb1 {[%clk 0:02:44]}  a3 {[%clk 0:02:14]} 16. b3 {[%clk 0:02:42]}  O-O {[%clk 0:02:14]} 17. Rdg1 {[%clk 0:02:21]}  Nxe4 {[%clk 0:01:57]} 18. Qxe4 {[%clk 0:02:21]}  Qd5 {[%clk 0:01:49]} 19. Qd3 {[%clk 0:02:00]}  Nd7 {[%clk 0:01:29]} 20. g4 {[%clk 0:02:00]}  f6 {[%clk 0:01:12]} 21. Nh4 {[%clk 0:01:22]}  Rfe8 {[%clk 0:00:55]} 22. Bxh6 {[%clk 0:01:12]}  Nc5 {[%clk 0:00:51]} 23. Qc2 {[%clk 0:00:57]}  Ne4 {[%clk 0:00:46]} 24. Be3 {[%clk 0:00:49]}  c5 {[%clk 0:00:43]} 25. f3 {[%clk 0:00:34]}  Ng5 {[%clk 0:00:40]} 26. h6 {[%clk 0:00:20]}  cxd4 {[%clk 0:00:21]} 27. Bxd4 {[%clk 0:00:17]}  e5 {[%clk 0:00:19]} 28. Be3 {[%clk 0:00:16]}  Rad8 {[%clk 0:00:17]} 29. Bxg5 {[%clk 0:00:15]}  fxg5 {[%clk 0:00:18]} 30. Nf5 {[%clk 0:00:15]}  Bf6 {[%clk 0:00:04]} 31. hxg7 {[%clk 0:00:13]}  Bxg7 {[%clk 0:00:02]} 32. Nxg7 {[%clk 0:00:13]}  Kxg7 {[%clk 0:00:03]} 33. Rh7+ {[%clk 0:00:10]}  Kg8 {[%clk 0:00:03]} 34. Qg6+ {[%clk 0:00:10]} 1-0


[Site "https://www.chess.com"]

[Event "Titled Tuesday Blitz April 05 Late 2022"]
[White "Domingo Nunez, Alejandro"]
[Black "Rasulov, Vugar"]
[WhiteFideId "22245561"]
[BlackFideId "13402390"]
[WhiteElo "2215"]
[BlackElo "2560"]
[Result "0-1"]
[Round "03"]
[TimeControl "180+1"]
[Date "2022.04.05"]
[WhiteClock "0:00:03"]
[BlackClock "0:00:14"]

1. Nf3 {[%clk 0:02:59]}  d5 {[%clk 0:03:00]} 2. g3 {[%clk 0:02:58]}  Nf6 {[%clk 0:03:00]} 3. Bg2 {[%clk 0:02:59]}  c6 {[%clk 0:03:00]} 4. O-O {[%clk 0:02:59]}  Bg4 {[%clk 0:02:59]} 5. d3 {[%clk 0:02:59]}  Nbd7 {[%clk 0:02:59]} 6. Nbd2 {[%clk 0:02:57]}  e6 {[%clk 0:02:55]} 7. e4 {[%clk 0:02:56]}  Be7 {[%clk 0:02:53]} 8. b3 {[%clk 0:02:54]}  O-O {[%clk 0:02:52]} 9. Bb2 {[%clk 0:02:53]}  a5 {[%clk 0:02:53]} 10. a4 {[%clk 0:02:53]}  b5 {[%clk 0:02:46]} 11. h3 {[%clk 0:02:48]}  Bh5 {[%clk 0:02:44]} 12. e5 {[%clk 0:02:35]}  Ne8 {[%clk 0:02:42]} 13. g4 {[%clk 0:02:35]}  Bg6 {[%clk 0:02:42]} 14. Nd4 {[%clk 0:02:36]}  Qb6 {[%clk 0:02:37]} 15. Kh1 {[%clk 0:02:29]}  Bc5 {[%clk 0:02:16]} 16. N2f3 {[%clk 0:02:26]}  Nc7 {[%clk 0:02:16]} 17. Qe1 {[%clk 0:02:11]}  Bb4 {[%clk 0:02:08]} 18. Qc1 {[%clk 0:02:01]}  bxa4 {[%clk 0:02:05]} 19. bxa4 {[%clk 0:01:50]}  c5 {[%clk 0:02:03]} 20. Ne2 {[%clk 0:01:47]}  c4 {[%clk 0:02:03]} 21. Bd4 {[%clk 0:01:31]}  Bc5 {[%clk 0:02:00]} 22. dxc4 {[%clk 0:01:27]}  dxc4 {[%clk 0:01:56]} 23. Rb1 {[%clk 0:01:26]}  Qa7 {[%clk 0:01:51]} 24. Nh4 {[%clk 0:01:12]}  Bxd4 {[%clk 0:01:47]} 25. Rb7 {[%clk 0:01:12]}  Qc5 {[%clk 0:01:39]} 26. Nxd4 {[%clk 0:01:13]}  Nxe5 {[%clk 0:01:36]} 27. Qf4 {[%clk 0:01:00]}  Rab8 {[%clk 0:01:31]} 28. Rfb1 {[%clk 0:00:46]}  Rxb7 {[%clk 0:01:28]} 29. Rxb7 {[%clk 0:00:47]}  c3 {[%clk 0:01:15]} 30. Nb5 {[%clk 0:00:45]}  Na6 {[%clk 0:01:08]} 31. Ra7 {[%clk 0:00:29]}  Bxc2 {[%clk 0:01:04]} 32. Rxa6 {[%clk 0:00:27]}  Bxa4 {[%clk 0:01:00]} 33. Nxc3 {[%clk 0:00:24]}  Qxc3 {[%clk 0:01:01]} 34. Qxa4 {[%clk 0:00:17]}  Qe1+ {[%clk 0:00:57]} 35. Kh2 {[%clk 0:00:18]}  Qxf2 {[%clk 0:00:58]} 36. Rxa5 {[%clk 0:00:18]}  Nd3 {[%clk 0:00:48]} 37. Ra8 {[%clk 0:00:12]}  Qf4+ {[%clk 0:00:30]} 38. Qxf4 {[%clk 0:00:11]}  Nxf4 {[%clk 0:00:31]} 39. Rxf8+ {[%clk 0:00:10]}  Kxf8 {[%clk 0:00:32]} 40. Kg3 {[%clk 0:00:11]}  Ne2+ {[%clk 0:00:29]} 41. Kf2 {[%clk 0:00:11]}  Nc3 {[%clk 0:00:29]} 42. Nf3 {[%clk 0:00:11]}  Ke7 {[%clk 0:00:30]} 43. Ke3 {[%clk 0:00:10]}  h6 {[%clk 0:00:30]} 44. Ne5 {[%clk 0:00:10]}  Kf6 {[%clk 0:00:28]} 45. Nd7+ {[%clk 0:00:10]}  Ke7 {[%clk 0:00:28]} 46. Ne5 {[%clk 0:00:09]}  Nb5 {[%clk 0:00:28]} 47. Nc6+ {[%clk 0:00:07]}  Kf6 {[%clk 0:00:28]} 48. Nd4 {[%clk 0:00:07]}  Nd6 {[%clk 0:00:29]} 49. Nf3 {[%clk 0:00:08]}  g5 {[%clk 0:00:29]} 50. Kd4 {[%clk 0:00:07]}  Nb5+ {[%clk 0:00:27]} 51. Kc5 {[%clk 0:00:07]}  Nc3 {[%clk 0:00:28]} 52. Kd4 {[%clk 0:00:07]}  Ne2+ {[%clk 0:00:28]} 53. Ke3 {[%clk 0:00:08]}  Nf4 {[%clk 0:00:29]} 54. Bf1 {[%clk 0:00:08]}  Nd5+ {[%clk 0:00:29]} 55. Ke4 {[%clk 0:00:08]}  Ke7 {[%clk 0:00:29]} 56. Ke5 {[%clk 0:00:08]}  Ne3 {[%clk 0:00:28]} 57. Bd3 {[%clk 0:00:06]}  Ng2 {[%clk 0:00:27]} 58. Ke4 {[%clk 0:00:06]}  Kd6 {[%clk 0:00:26]} 59. Bf1 {[%clk 0:00:07]}  Nf4 {[%clk 0:00:26]} 60. Ne5 {[%clk 0:00:07]}  Ke7 {[%clk 0:00:23]} 61. Nc6+ {[%clk 0:00:07]}  Kf6 {[%clk 0:00:24]} 62. Ne5 {[%clk 0:00:07]}  Kg7 {[%clk 0:00:23]} 63. Nd3 {[%clk 0:00:07]}  Ng6 {[%clk 0:00:23]} 64. Be2 {[%clk 0:00:07]}  Ne7 {[%clk 0:00:20]} 65. Ke5 {[%clk 0:00:06]}  Nd5 {[%clk 0:00:20]} 66. Bf3 {[%clk 0:00:07]}  Nb6 {[%clk 0:00:19]} 67. Nc5 {[%clk 0:00:07]}  Nc4+ {[%clk 0:00:18]} 68. Kd4 {[%clk 0:00:07]}  Nd6 {[%clk 0:00:19]} 69. Ne4 {[%clk 0:00:07]}  Nb5+ {[%clk 0:00:18]} 70. Kc5 {[%clk 0:00:07]}  Nc7 {[%clk 0:00:19]} 71. Nc3 {[%clk 0:00:07]}  Kf6 {[%clk 0:00:17]} 72. Bc6 {[%clk 0:00:06]}  Ke5 {[%clk 0:00:17]} 73. Kb6 {[%clk 0:00:06]}  Nd5+ {[%clk 0:00:13]} 74. Nxd5 {[%clk 0:00:03]}  exd5 {[%clk 0:00:14]} 75. Kc7 {[%clk 0:00:03]}  d4 {[%clk 0:00:13]} 76. Kd7 {[%clk 0:00:03]}  d3 {[%clk 0:00:12]} 77. Ke7 {[%clk 0:00:03]}  f5 {[%clk 0:00:12]} 78. gxf5 {[%clk 0:00:01]}  Kxf5 {[%clk 0:00:13]} 79. Ba4 {[%clk 0:00:02]}  h5 {[%clk 0:00:12]} 80. Bd1 {[%clk 0:00:01]}  g4 {[%clk 0:00:13]} 81. hxg4+ {[%clk 0:00:02]}  hxg4 {[%clk 0:00:14]} 82. Kd6 {[%clk 0:00:02]}  Kf4 {[%clk 0:00:14]} 83. Kd5 {[%clk 0:00:03]}  g3 {[%clk 0:00:14]} 84. Kd4 {[%clk 0:00:03]}  g2 {[%clk 0:00:14]} 0-1


[Site "https://www.chess.com"]